bitfinex/quotes_ETHUSD_20260219
["timestamp","ask_amount","ask_price","bid_price","bid_amount"]
[1771510509099,1.57506526,1932.0,1931.5,1.29433083]
[1771510509273,2.38206526,1932.0,1931.5,1.29433083]
[1771510509477,2.38106526,1932.0,1931.5,1.29433083]
[1771510509793,1.57506526,1931.9,1931.2,1.5555448]
[1771510511805,1.57506526,1931.9,1931.3,2.85000966]
[1771510512302,2.86913218,1931.9,1931.3,2.85000966]
[1771510512504,1.57506526,1931.9,1931.3,2.85000966]
[1771510512722,1.57506526,1931.9,1931.4,1.5555448]
[1771510512878,2.38006526,1931.9,1931.4,1.5555448]
[1771510513074,1.57506526,1931.9,1931.4,1.5555448]
[1771510513282,2.09994195,1932.1,1931.4,1.5555448]
[1771510513707,3.67500721,1932.1,1931.4,1.5555448]
[1771510513904,3.67500721,1932.1,1931.5,2.84987563]
[1771510516099,0.001,1932.1,1931.6,1.5555448]
[1771510516293,0.736,1932.3,1931.6,1.5555448]
[1771510516815,1.57506526,1932.2,1931.6,1.5555448]
[1771510518413,0.803,1932.3,1931.8,1.5555448]
[1771510518785,0.001,1932.6,1931.8,1.5555448]
[1771510519383,2.35806526,1932.5,1931.8,1.5555448]
[1771510519714,1.57506526,1932.4,1931.8,1.5555448]
[1771510520416,1.57506526,1932.8,1932.3,7.34995765]
[1771510520619,1.57506526,1932.8,1932.1,7.08834173]
[1771510520620,1.57506526,1932.7,1932.1,1.29392888]
[1771510520818,1.57506526,1932.7,1931.9,1.29406283]
[1771510521115,1.57506526,1932.7,1931.4,6.72641285]
[1771510521116,1.57506526,1932.5,1931.6,1.29421443]
[1771510521326,1.57506526,1932.3,1931.6,1.29421443]
[1771510521829,1.57506526,1932.1,1931.4,2.84989047]
[1771510522022,1.57506526,1932.1,1931.4,1.29434567]
[1771510522391,1.57506526,1931.9,1931.4,1.29434567]
[1771510524109,2.86913567,1931.9,1931.4,1.29434567]
[1771510524306,1.57506526,1931.8,1931.3,2.85105635]
[1771510524488,2.37906526,1931.8,1931.3,2.85105635]
[1771510524688,0.804,1931.9,1931.3,8.6454692]
[1771510524888,0.804,1931.9,1931.4,1.5555448]
[1771510525299,1.57506526,1932.0,1931.4,1.5555448]
[1771510525500,1.57506526,1932.2,1931.6,1.5555448]
[1771510525898,2.37906526,1932.2,1931.6,1.5555448]
[1771510526714,3.67292744,1932.2,1931.7,1.29419682]
[1771510527823,0.804,1932.1,1931.7,1.29419682]
[1771510528336,2.37906526,1932.1,1931.7,1.29419682]
[1771510529541,1.57506526,1932.0,1931.5,0.0011]
[1771510531395,1.57506526,1931.7,1931.4,0.0011]
[1771510531588,2.37906526,1931.6,1931.4,0.0011]
[1771510531793,1.57506526,1931.3,1930.8,1.29583349]
[1771510532021,0.804,1931.2,1930.8,1.29583349]
[1771510532918,2.37906526,1931.2,1930.8,0.0011]
[1771510533120,1.57506526,1931.1,1930.8,0.0011]
[1771510533520,2.86963326,1931.2,1930.8,0.0011]
[1771510533824,0.804,1931.1,1930.8,0.0011]
[1771510534492,1.57506526,1931.4,1930.8,1.5566448]
[1771510534698,0.804,1931.3,1930.8,1.5566448]
[1771510535493,0.804,1931.4,1930.9,1.29473302]
[1771510535925,1.57506526,1931.5,1930.9,1.29473302]
[1771510536101,0.804,1931.4,1930.9,2.85027782]
[1771510536298,1.57506526,1931.5,1930.9,2.85027782]
[1771510536498,2.37906526,1931.5,1930.9,2.85027782]
[1771510536902,1.57506526,1931.5,1930.9,2.85027782]
[1771510537101,2.37906526,1931.5,1930.9,2.85027782]
[1771510538323,1.603152,1931.4,1930.9,1.29473302]
[1771510538525,1.603152,1931.4,1930.8,5.18009734]
[1771510538705,1.603152,1931.4,1930.8,1.29590008]
[1771510538903,1.603152,1931.4,1930.9,0.0011]
[1771510539927,1.603152,1931.3,1930.9,0.0011]
[1771510540124,2.89746233,1931.6,1930.9,1.55133637]
[1771510540335,1.603152,1931.4,1930.9,0.0011]
[1771510540546,1.603152,1931.8,1930.9,1.55133637]
[1771510540903,0.803,1931.7,1930.9,1.55133637]
[1771510541837,0.803,1931.9,1930.9,1.55133637]
[1771510542028,0.693,1931.9,1931.1,1.55023637]
[1771510542426,1.603152,1932.2,1931.1,1.55023637]
[1771510542628,0.802,1932.1,1931.1,1.55023637]
[1771510543133,2.405152,1932.2,1931.2,1.55023637]
[1771510543432,0.802,1932.1,1931.2,1.55023637]
[1771510543934,1.603152,1931.9,1931.3,1.29446486]
[1771510546732,1.603152,1931.9,1931.3,1.55023637]
[1771510546935,2.89721606,1931.9,1931.3,1.55023637]
[1771510547138,1.603152,1931.8,1931.1,1.55023637]
[1771510547304,1.603152,1931.8,1931.0,1.55023637]
[1771510547504,0.801,1931.9,1931.0,1.55023637]
[1771510548527,2.404152,1931.9,1931.0,1.55023637]
[1771510548731,1.603152,1931.8,1931.0,1.55023637]
[1771510548933,1.603152,1931.7,1931.1,1.29459893]
[1771510549114,1.603152,1931.7,1931.2,1.55023637]
[1771510549322,3.6982507,1931.9,1931.2,1.55023637]
[1771510549525,2.404152,1931.9,1931.2,1.55023637]
[1771510550244,1.603152,1931.8,1931.2,1.55023637]
[1771510550834,1.603152,1931.8,1931.1,1.29459893]
[1771510551010,2.89728485,1931.8,1931.1,2.8448353]
[1771510551202,0.001,1931.6,1931.1,2.8448353]
[1771510551943,0.001,1931.6,1931.2,1.55023637]
[1771510554137,0.001,1931.6,1931.4,1.55023637]
[1771510555225,0.001,1931.6,1931.4,1.55023637]
[1771510556019,0.001,1931.6,1931.4,2.84459831]
[1771510558322,0.001,1931.6,1931.5,1.55023637]
[1771510559720,0.001,1931.6,1931.4,1.29436194]
[1771510560022,0.001,1931.6,1931.4,2.84459831]
[1771510560448,0.001,1931.6,1931.4,1.55023637]
[1771510560818,0.001,1931.6,1931.4,2.84462638]
[1771510561532,0.001,1931.6,1931.3,1.56564445]
[1771510561942,0.001,1931.6,1931.2,1.29453189]
[1771510562251,0.001,1931.6,1931.1,3.62824338]
[1771510563130,0.001,1931.6,1931.1,1.29458821]
[1771510563323,0.001,1931.6,1931.2,1.56564445]
[1771510564361,0.001,1931.5,1931.2,1.56564445]
[1771510565289,0.001,1931.5,1931.4,1.56564445]
[1771510565568,0.793,1932.0,1931.4,1.56564445]
[1771510566131,1.53453641,1932.2,1931.4,1.56564445]
[1771510566353,2.32753641,1932.2,1931.4,1.56564445]
[1771510566555,1.53453641,1932.2,1931.4,1.56564445]
[1771510566756,2.73338121,1932.6,1931.5,1.45478486]
[1771510566970,2.73444691,1932.5,1931.7,1.45478486]
[1771510567238,2.73444691,1932.5,1931.9,1.45478486]
[1771510567239,1.44077909,1932.5,1931.9,1.45478486]
[1771510567970,1.43977909,1932.3,1931.3,1.45478486]
[1771510569047,1.43977909,1932.1,1931.2,1.29447954]
[1771510569268,1.43977909,1931.9,1931.2,1.29447954]
[1771510569470,1.86366275,1931.8,1931.2,1.29447954]
[1771510569673,1.43977909,1931.8,1931.2,1.29447954]
[1771510569977,2.23277909,1932.0,1931.3,1.45478486]
[1771510570144,0.42406766,1931.9,1931.3,1.45478486]
[1771510570336,0.42406766,1931.8,1931.3,1.45478486]
[1771510570542,1.43977909,1931.9,1931.3,1.45478486]
[1771510570776,0.42403662,1931.8,1931.3,1.45478486]
[1771510570949,1.43977909,1931.9,1931.3,1.45478486]
[1771510571148,1.86366908,1931.8,1931.3,1.45478486]
[1771510571368,1.43977909,1931.8,1931.3,1.45478486]
[1771510571662,1.43977909,1931.8,1931.4,1.29439784]
[1771510572466,1.43977909,1931.7,1931.2,1.29447981]
[1771510572869,1.2941501,1931.8,1931.1,1.29568798]
[1771510572870,1.43977909,1931.5,1931.1,1.29568798]
[1771510573742,1.43977909,1931.5,1931.1,0.0011]
[1771510575772,2.73411721,1931.5,1931.1,0.0011]
[1771510577160,1.43977909,1931.4,1931.2,0.0011]
[1771510579585,0.793,1931.5,1931.2,0.0011]
[1771510580582,2.23277909,1931.5,1931.2,0.0011]
[1771510580786,1.43977909,1931.3,1931.0,0.0011]
[1771510581555,1.43977909,1931.1,1931.0,0.0011]
[1771510582490,0.794,1931.2,1931.0,0.0011]
[1771510582970,2.23377909,1931.3,1931.0,0.0011]
[1771510584073,3.52824785,1931.3,1931.0,0.0011]
[1771510584375,1.43977909,1931.2,1931.0,0.0011]
[1771510585257,0.794,1931.3,1931.0,0.0011]
[1771510585458,2.23377909,1931.3,1931.0,0.0011]
[1771510585787,0.794,1931.2,1931.0,0.0011]
[1771510586790,2.73413178,1931.5,1931.0,0.0011]
[1771510586982,0.794,1931.3,1931.0,0.0011]
[1771510587180,1.43977909,1931.5,1931.0,1.45588486]
[1771510587366,0.794,1931.4,1931.0,1.45588486]
[1771510588478,1.43977909,1931.5,1931.1,1.29459893]
[1771510588769,1.43977909,1931.4,1931.0,2.75050051]
[1771510588967,1.43977909,1931.4,1931.0,1.29571565]
[1771510589166,1.43977909,1931.4,1931.0,0.0011]
[1771510589798,1.43977909,1931.4,1931.1,0.0011]
[1771510590098,0.001,1931.2,1931.1,0.0011]
[1771510590467,1.43977909,1931.0,1930.9,0.0011]
[1771510590766,1.43977909,1931.0,1930.7,0.0011]
[1771510590767,1.43977909,1930.9,1930.7,0.0011]
[1771510591207,1.43977909,1930.9,1930.5,0.0011]
[1771510591374,1.43977909,1930.7,1930.2,0.0011]
[1771510591707,2.32999893,1931.1,1930.0,2.7512062]
[1771510591708,1.43977909,1930.5,1930.0,2.7512062]
[1771510591870,0.795,1930.8,1930.1,1.45478486]
[1771510592072,2.73437802,1931.1,1930.1,1.45478486]
[1771510592392,0.795,1930.8,1930.1,1.45478486]
[1771510592594,2.23477909,1930.8,1930.3,1.45478486]
[1771510593495,1.43977909,1931.0,1930.3,1.45478486]
[1771510593798,0.001,1931.2,1930.3,1.45478486]
[1771510593799,0.795,1931.1,1930.3,1.45478486]
[1771510594162,1.44077909,1931.2,1930.3,1.45478486]
[1771510594367,0.001,1931.2,1930.3,1.45478486]
[1771510594601,0.001,1931.2,1930.5,1.45478486]
[1771510594902,0.001,1931.2,1930.6,1.45478486]
[1771510596826,0.001,1931.2,1930.8,1.48906108]
[1771510598819,0.001,1931.2,1930.7,1.29486714]
[1771510598820,2.33635293,1931.7,1930.9,1.48906108]
[1771510599106,0.42237525,1931.6,1930.9,1.48906108]
[1771510599280,2.33635293,1931.7,1930.9,1.48906108]
[1771510599471,0.4224748,1931.6,1930.9,1.48906108]
[1771510599668,2.33635293,1931.7,1930.9,1.48906108]
[1771510599868,0.42248569,1931.6,1930.9,1.48906108]
[1771510600114,2.33635293,1931.7,1930.9,1.48906108]
[1771510600271,0.42260963,1931.6,1930.9,1.48906108]
[1771510600470,2.33635293,1931.7,1930.9,1.48906108]
[1771510600769,0.42260955,1931.6,1930.9,1.48906108]
[1771510600992,2.33635293,1931.7,1931.1,1.48906108]
[1771510601202,1.54335293,1932.1,1931.1,1.48906108]
[1771510601374,0.42260511,1932.0,1931.1,1.48906108]
[1771510601696,1.54335293,1932.1,1931.1,1.48906108]
[1771510603205,1.54335293,1932.1,1931.3,1.48906108]
[1771510603371,2.33635293,1932.3,1931.3,1.48906108]
[1771510603571,0.42235416,1932.2,1931.3,1.48906108]
[1771510603791,0.42235416,1932.1,1931.3,1.48906108]
[1771510604094,1.54435293,1932.3,1931.5,1.48906108]
[1771510605372,1.54435293,1932.3,1931.7,1.48906108]
[1771510606069,0.001,1932.3,1931.7,1.48906108]
[1771510607478,0.001,1932.3,1931.8,1.29412982]
[1771510607689,0.001,1932.3,1931.8,2.7831909]
[1771510607894,0.001,1932.3,1931.9,1.48906108]
[1771510608923,1.54435293,1932.3,1931.3,1.48906108]
[1771510609076,1.54335293,1932.1,1931.4,1.29436736]
[1771510610033,1.54335293,1932.0,1931.4,1.29436736]
[1771510610180,1.54335293,1932.2,1931.5,1.48906108]
[1771510610810,0.001,1932.3,1931.5,1.48906108]
[1771510611194,1.54435293,1932.3,1931.5,1.48906108]
[1771510611518,1.54335293,1932.2,1931.5,1.48906108]
[1771510612083,1.54335293,1932.2,1931.6,1.29426382]
[1771510612595,1.54335293,1932.1,1931.6,1.29426382]
[1771510612794,1.54335293,1932.1,1931.5,1.29428836]
[1771510613092,1.54335293,1932.1,1931.4,1.2943505]
[1771510614081,1.54335293,1932.0,1931.4,1.2943505]
[1771510614282,1.54335293,1932.0,1931.4,2.78341158]
[1771510614787,1.54435293,1932.0,1931.4,2.78341158]
[1771510615099,1.54435293,1932.0,1931.5,1.48906108]
[1771510615293,0.001,1932.0,1931.5,1.48906108]
[1771510616613,0.001,1932.0,1931.6,1.29426382]
[1771510617314,1.54435293,1932.0,1931.6,1.29426382]
[1771510617515,1.54435293,1932.0,1931.4,5.17745268]
[1771510617719,1.54435293,1932.0,1931.3,0.0011]
[1771510617917,1.54435293,1932.0,1931.3,1.29556164]
[1771510619128,1.54335293,1931.8,1931.3,0.0011]
[1771510621131,1.29416238,1931.8,1931.3,0.0011]
[1771510621324,1.40686145,1931.7,1931.3,0.0011]
[1771510621711,1.40686145,1931.7,1931.2,0.0011]
[1771510622038,1.40686145,1931.7,1931.2,1.45566755]
[1771510622334,2.19486145,1931.9,1931.2,1.45566755]
[1771510622540,0.001,1932.0,1931.2,1.45566755]
[1771510622736,1.40786145,1932.0,1931.2,1.45566755]
[1771510622905,1.40686145,1931.9,1931.2,1.45566755]
[1771510623639,1.40686145,1931.8,1931.3,1.29446486]
[1771510624334,5.1754535,1932.2,1931.3,1.29446486]
[1771510624335,0.001,1932.3,1931.6,1.45456755]
[1771510624710,2.70165732,1932.3,1931.6,1.45456755]
[1771510625033,2.70165732,1932.3,1931.5,0.77]
[1771510625034,1.40686145,1932.2,1931.5,0.77]
[1771510625237,1.40686145,1932.2,1931.4,1.45456755]
[1771510625409,0.788,1932.2,1931.4,1.45456755]
[1771510625935,0.788,1932.2,1931.6,1.45456755]
[1771510626259,1.40786145,1932.3,1931.6,1.45456755]
[1771510626750,2.19486145,1932.3,1931.6,1.45456755]
[1771510627505,1.53378097,1932.2,1931.6,1.45456755]
[1771510627912,1.53378097,1932.1,1931.4,1.29439784]
[1771510628330,0.001,1932.0,1931.4,1.29439784]
[1771510628638,0.001,1932.0,1931.4,2.75335122]
[1771510629938,1.53478097,1932.0,1931.4,2.75335122]
[1771510630138,1.53478097,1932.0,1931.4,1.29439784]
[1771510630531,1.53478097,1932.0,1931.4,2.75335122]
[1771510631549,2.32078097,1932.0,1931.4,2.75335122]
[1771510631968,0.001,1932.0,1931.6,2.7532172]
[1771510632148,0.001,1932.3,1931.7,1.45895338]
[1771510633036,1.48401038,1932.3,1931.7,1.45895338]
[1771510633232,0.42270108,1932.2,1931.7,1.45895338]
[1771510633433,1.48401038,1932.3,1931.7,1.45895338]
[1771510633633,0.42266779,1932.2,1931.7,1.45895338]
[1771510633855,1.48401038,1932.3,1931.7,1.45895338]
[1771510634035,0.42267645,1932.2,1931.8,1.29412982]
[1771510634231,1.48401038,1932.3,1931.8,2.7530832]
[1771510634462,0.001,1932.3,1931.8,2.7530832]
[1771510635475,0.001,1932.3,1931.9,1.45895338]
[1771510636861,0.001,1932.3,1932.0,1.29399585]
[1771510639261,0.001,1932.5,1932.0,1.45895338]
[1771510639634,1.51324123,1932.5,1931.5,1.45895338]
[1771510639833,1.51224123,1932.4,1931.5,1.46005338]
[1771510640247,0.001,1932.2,1931.5,1.46005338]
[1771510641447,0.001,1932.2,1931.7,1.45895338]
[1771510643962,0.001,1932.2,1931.8,2.7530832]
[1771510644165,1.53478097,1932.2,1931.8,1.29412982]
[1771510644753,0.001,1932.2,1931.9,1.45895338]
[1771510645944,0.001,1932.2,1931.7,1.45895338]
[1771510646177,1.53471267,1932.2,1931.7,1.45895338]
[1771510647277,1.53471267,1932.2,1931.5,0.0011]
[1771510647575,1.53471267,1932.2,1931.5,1.46005338]
[1771510648172,1.53471267,1932.2,1931.6,1.29426382]
[1771510648479,1.53471267,1932.2,1931.6,2.7532172]
[1771510648776,1.52678301,1932.1,1931.6,2.7532172]
[1771510649779,0.784,1932.2,1931.7,1.45895338]
[1771510650381,0.001,1932.2,1931.9,1.45895338]
[1771510652675,0.001,1932.2,1932.0,1.29399585]
[1771510655384,0.001,1932.2,1932.0,2.75294923]
[1771510659778,1.50188079,1932.1,1931.8,0.0011]
[1771510660086,1.50188079,1932.1,1931.5,0.0011]
[1771510660257,0.20788494,1932.0,1931.5,1.29762814]
[1771510660461,0.781,1931.9,1931.6,1.43641978]
[1771510660858,0.781,1932.0,1931.6,1.43641978]
[1771510661873,0.781,1932.0,1931.6,2.73067164]
[1771510662092,0.27356513,1932.1,1931.6,2.73067164]
[1771510662269,1.05456513,1932.1,1931.7,1.43861978]
[1771510663466,0.26917426,1932.0,1931.7,0.0022]
[1771510663670,0.26917426,1932.0,1931.5,0.0011]
[1771510663891,0.26917426,1932.0,1931.6,0.0022]
[1771510664290,1.29406283,1931.9,1931.5,0.0011]
[1771510664593,0.26767506,1931.8,1931.6,0.0022]
[1771510666379,1.56180488,1931.8,1931.7,0.0011]
[1771510666778,1.56180488,1931.8,1931.6,0.0022]
[1771510667395,1.04617499,1931.7,1931.5,0.0011]
[1771510667568,0.26317499,1931.6,1931.4,0.0011]
[1771510667903,0.26317499,1931.6,1931.4,0.0033]
[1771510668071,0.26317499,1931.6,1931.4,0.0011]
[1771510669377,1.5532252,1931.8,1931.4,0.0033]
[1771510669584,0.69263212,1931.7,1931.5,1.43696978]
[1771510669898,0.784,1931.8,1931.5,1.43696978]
[1771510670070,0.784,1931.8,1931.6,0.0022]
[1771510670471,0.26018238,1931.7,1931.4,0.0011]
[1771510670772,2.07926382,1931.6,1931.4,0.0033]
[1771510671704,0.785,1931.5,1931.4,0.0033]
[1771510672199,0.25862846,1931.4,1931.2,0.0011]
[1771510672569,0.25862846,1931.4,1931.0,0.0011]
[1771510672805,1.29446486,1931.3,1931.0,0.0011]
[1771510675610,0.25141828,1931.2,1931.0,0.0011]
[1771510675811,0.787,1931.1,1931.0,0.0011]
[1771510676803,0.788,1931.1,1931.0,0.0011]
[1771510677286,0.788,1931.1,1931.0,1.43861978]
[1771510677794,0.788,1931.1,1931.0,0.0011]
[1771510678293,1.54270105,1931.4,1931.0,0.0011]
[1771510678494,0.788,1931.1,1931.0,0.0011]
[1771510679040,0.2455494,1931.0,1930.3,2.73429842]
[1771510679189,0.788,1930.9,1930.8,0.0011]
[1771510679587,1.29459893,1931.1,1930.8,0.0011]
[1771510679830,0.001,1931.3,1930.8,1.43916978]
[1771510680031,0.788,1931.2,1930.8,1.43916978]
[1771510680325,0.001,1931.3,1930.9,1.48039357]
[1771510680883,1.29427822,1931.6,1931.1,1.48039357]
[1771510681109,0.788,1931.5,1931.1,1.48039357]
[1771510683189,1.53767887,1931.7,1931.2,1.48039357]
[1771510683385,0.788,1931.6,1931.2,1.48039357]
[1771510683900,0.788,1931.6,1931.2,1.46689357]
[1771510684101,1.29423437,1931.7,1931.2,1.46689357]
[1771510684417,1.29423437,1931.7,1931.3,1.48039357]
[1771510684721,0.789,1931.6,1931.3,1.48039357]
[1771510685719,0.789,1931.6,1931.1,1.48039357]
[1771510686324,1.03818061,1931.6,1931.1,1.48039357]
[1771510686620,1.29433083,1931.5,1931.1,1.48039357]
[1771510688024,1.5412236,1931.5,1930.9,1.44221511]
[1771510688220,0.24689277,1931.4,1930.9,1.44221511]
[1771510689317,1.54134599,1931.4,1930.9,1.44221511]
[1771510689619,0.79,1931.3,1930.9,1.44221511]
[1771510689919,1.29437748,1931.5,1931.0,1.44221511]
[1771510690088,0.79,1931.4,1931.0,1.44221511]
[1771510690919,0.79,1931.4,1931.0,1.44331511]
[1771510691224,0.791,1931.4,1931.0,1.44331511]
[1771510691516,2.08540247,1931.4,1931.0,1.44331511]
[1771510693122,2.3239246,1931.4,1931.0,1.44331511]
[1771510693317,2.3239246,1931.4,1931.0,0.0011]
[1771510694194,1.5339246,1931.4,1931.0,0.0011]
[1771510694391,0.791,1931.3,1931.0,0.0011]
[1771510695009,0.791,1931.3,1931.0,1.44331511]
[1771510695707,2.08551308,1931.3,1931.0,1.44331511]
[1771510696428,2.31725767,1931.3,1930.9,0.0011]
[1771510696597,1.52625767,1931.3,1930.9,0.0011]
[1771510696797,0.792,1931.2,1930.9,1.44331511]
[1771510697327,0.23006837,1931.1,1930.8,0.0011]
[1771510697518,0.23006837,1931.1,1930.7,0.0011]
[1771510697825,1.29466597,1931.0,1930.7,0.0011]
[1771510698032,2.08766597,1931.0,1930.7,0.0011]
[1771510698202,1.52355208,1931.2,1930.7,1.44331511]
[1771510698402,0.793,1931.1,1930.7,1.44331511]
[1771510698824,1.29448027,1931.3,1930.9,1.44221511]
[1771510699126,0.793,1931.2,1930.9,1.44221511]
[1771510700113,0.793,1931.3,1930.9,1.44221511]
[1771510700626,0.001,1931.4,1931.0,1.44221511]
[1771510700805,0.794,1931.4,1931.1,1.44221511]
[1771510701219,0.001,1931.4,1931.1,1.44221511]
[1771510701428,1.0271722,1931.5,1931.1,1.44221511]
[1771510701734,1.0271722,1931.5,1930.9,1.44221511]
[1771510702834,2.08739784,1931.4,1930.9,1.44221511]
[1771510703427,1.29439784,1931.4,1931.0,0.0011]
[1771510703730,0.793,1931.3,1931.0,1.44331511]
[1771510704106,1.02368683,1931.3,1931.0,0.0011]
[1771510705834,1.52170812,1931.2,1931.0,0.0011]
[1771510706330,0.22717623,1931.1,1930.9,0.0011]
[1771510706508,1.29453189,1931.2,1930.9,0.0011]
[1771510706831,0.793,1931.3,1930.9,1.44331511]
[1771510707034,2.08924389,1931.7,1931.2,1.44221511]
[1771510707209,2.08924389,1931.7,1930.9,1.44331511]
[1771510707210,0.22541535,1931.6,1930.9,1.44331511]
[1771510707616,0.27944313,1931.5,1930.9,0.0011]
[1771510708003,0.27944313,1931.3,1930.9,0.0011]
[1771510708207,0.27944313,1931.3,1930.5,10.98036154]
[1771510708208,0.27944313,1931.1,1930.5,1.44221511]
[1771510709502,0.795,1931.0,1930.5,1.44221511]
[1771510710201,0.795,1931.0,1930.6,1.44221511]
[1771510710405,2.08967207,1931.0,1930.6,1.44221511]
[1771510711443,2.36044764,1931.0,1930.6,1.44221511]
[1771510711810,0.27077557,1930.9,1930.3,1.44331511]
[1771510712515,0.27077557,1930.9,1930.2,1.29627924]
[1771510712516,0.36983112,1930.7,1930.2,0.0011]
[1771510712712,0.36983112,1930.5,1930.2,0.0011]
[1771510712915,0.36983112,1930.4,1930.0,0.0011]
[1771510713847,0.37100755,1930.3,1930.0,0.0011]
[1771510714143,0.796,1930.2,1930.0,0.0011]
[1771510714517,2.09124655,1930.2,1930.0,0.0011]
[1771510714842,2.45931357,1930.2,1929.7,1.44221511]
[1771510715546,0.796,1930.2,1929.7,2.73774728]
[1771510715749,0.797,1930.1,1929.8,1.44221511]
[1771510716544,0.797,1930.0,1929.8,1.44221511]
[1771510717150,0.797,1930.0,1929.8,0.0011]
[1771510718247,1.29526975,1930.1,1929.8,0.0011]
[1771510718453,0.797,1930.0,1929.8,0.0011]
[1771510718923,1.29518982,1930.3,1929.8,1.52253679]
[1771510719250,0.797,1930.2,1929.8,1.52253679]
[1771510719628,1.29518982,1930.3,1929.8,1.52253679]
[1771510719825,0.797,1930.2,1929.8,1.52253679]
[1771510720024,1.15956056,1930.2,1929.8,0.0011]
[1771510720348,0.36256056,1930.1,1929.4,1.52143679]
[1771510721215,0.36069987,1929.9,1929.4,1.52143679]
[1771510721416,0.35885657,1929.7,1929.0,2.81854195]
[1771510721642,0.35885657,1929.6,1929.1,1.52143679]
[1771510722752,0.35885657,1929.6,1929.0,0.0011]
[1771510723156,1.29567245,1929.5,1929.0,0.0011]
[1771510723321,0.3569763,1929.4,1928.7,1.52253679]
[1771510723522,0.35399888,1929.2,1928.7,0.0011]
[1771510725338,0.35218468,1929.0,1928.2,1.52143679]
[1771510725535,1.14730847,1928.9,1928.2,1.52143679]
[1771510725757,0.35030847,1928.8,1928.2,1.52143679]
[1771510726429,0.796,1928.7,1928.2,1.52143679]
[1771510727229,1.29594111,1929.1,1928.3,1.29647876]
[1771510727563,0.796,1929.0,1928.4,1.52143679]
[1771510728342,1.14071364,1929.0,1928.4,1.52143679]
[1771510729372,1.29607548,1928.9,1928.4,2.81784058]
[1771510729843,1.29607548,1928.9,1928.4,1.52143679]
[1771510730363,1.63890466,1928.9,1928.4,1.52143679]
[1771510730773,0.796,1929.0,1928.5,1.52143679]
[1771510731073,0.796,1929.1,1928.5,1.52143679]
[1771510731639,5.18270875,1929.5,1928.5,1.52143679]
[1771510731640,1.29578356,1929.4,1928.7,1.52143679]
[1771510731972,0.796,1929.3,1928.7,1.52143679]
[1771510732957,0.33717554,1929.2,1928.5,1.52143679]
[1771510734378,0.796,1929.1,1928.7,1.52143679]
[1771510736278,5.1833416,1929.3,1928.7,1.52143679]
[1771510736464,0.796,1929.1,1928.7,1.52143679]
[1771510738750,0.796,1929.1,1928.8,1.52143679]
[1771510739877,0.796,1929.1,1928.5,1.52143679]
[1771510740057,1.48771051,1929.0,1928.3,0.0011]
[1771510740565,1.40059378,1928.8,1928.3,0.0011]
[1771510740755,1.40059378,1928.8,1928.1,0.0011]
[1771510740756,1.40059378,1928.5,1928.1,0.0011]
[1771510740955,1.40059378,1928.3,1927.8,0.0011]
[1771510742156,0.796,1928.2,1927.8,0.0011]
[1771510742359,1.40059378,1928.1,1927.5,0.0011]
[1771510742752,1.29668049,1928.0,1927.5,0.0011]
[1771510742953,1.29668049,1928.0,1927.1,1.42179821]
[1771510742954,1.40059378,1927.9,1927.1,1.42179821]
[1771510743372,0.796,1927.8,1927.2,1.42179821]
[1771510743874,2.19659378,1927.8,1927.2,1.42179821]
[1771510744857,1.29688229,1927.7,1927.2,2.71901326]
[1771510745082,2.09288229,1927.7,1927.2,2.71901326]
[1771510745273,2.09288229,1927.7,1927.2,1.42179821]
[1771510745470,0.796,1927.7,1927.2,2.71901294]
[1771510745788,5.18649304,1928.1,1927.2,2.71901294]
[1771510745789,1.40059378,1928.2,1927.3,1.42179821]
[1771510745962,0.796,1928.1,1927.3,1.42179821]
[1771510746360,1.29647876,1928.3,1927.3,1.42179821]
[1771510746557,0.796,1928.4,1927.3,1.42179821]
[1771510747073,0.796,1928.4,1927.5,1.55008198]
[1771510747074,2.09244158,1928.4,1927.5,1.55008198]
[1771510747269,1.46935285,1928.3,1927.2,2.84727275]
[1771510747475,1.46935285,1928.2,1927.3,1.55008198]
[1771510747787,1.46935285,1928.2,1927.0,2.84740668]
[1771510748292,1.46935285,1928.0,1927.0,2.84740668]
[1771510748590,1.46935285,1928.0,1927.1,1.55008198]
[1771510749284,1.46935285,1928.0,1926.9,2.8474777]
[1771510749285,1.46935285,1927.8,1926.9,2.8474777]
[1771510749667,2.26435285,1927.7,1926.9,2.8474777]
[1771510750182,1.46935285,1927.6,1926.9,2.8474777]
[1771510750768,1.46935285,1927.6,1926.4,1.55008198]
[1771510750973,8.86879148,1927.9,1926.4,1.55008198]
[1771510750974,3.19835285,1927.5,1926.4,1.55008198]
[1771510751171,3.02608415,1927.4,1926.6,1.55008198]
[1771510751361,1.46935285,1927.3,1926.6,1.55008198]
[1771510751558,1.46935285,1927.3,1926.4,1.29771243]
[1771510751799,1.46935285,1927.3,1926.4,2.84779441]
[1771510752289,0.795,1927.2,1926.5,1.55008198]
[1771510752901,2.09206168,1927.5,1926.5,1.55008198]
[1771510753413,2.09206168,1927.5,1926.7,1.55008198]
[1771510753564,1.46935285,1927.4,1926.7,1.55008198]
[1771510753989,0.795,1927.4,1926.7,1.55008198]
[1771510754380,0.795,1927.5,1926.7,1.55008198]
[1771510755129,0.795,1927.5,1926.5,5.19049102]
[1771510755130,1.46935285,1927.3,1926.5,1.55008198]
[1771510755394,0.795,1927.2,1926.7,1.55008198]
[1771510755695,0.795,1927.6,1926.7,1.55008198]
[1771510755897,0.001,1927.7,1926.7,1.55008198]
[1771510756204,2.0918844,1927.7,1926.7,1.55008198]
[1771510757185,0.795,1927.7,1926.7,1.55008198]
[1771510757498,0.001,1927.7,1926.9,1.55008198]
[1771510759396,0.001,1927.7,1927.1,1.55008198]
[1771510760297,0.76,1928.3,1927.2,1.55008198]
[1771510760529,1.29624218,1928.7,1927.4,1.55008198]
[1771510760709,2.26235285,1928.6,1927.4,1.55008198]
[1771510761198,1.46935285,1928.5,1927.4,1.55008198]
[1771510761491,2.76570871,1928.5,1927.6,1.55008198]
[1771510761696,1.29631262,1928.6,1927.6,1.55008198]
[1771510761892,3.55866547,1928.6,1927.6,1.55008198]
[1771510762065,2.26235285,1928.6,1927.6,1.55008198]
[1771510762262,0.793,1928.7,1927.6,1.55008198]
[1771510762692,0.793,1928.9,1927.6,1.55008198]
[1771510762895,2.76633164,1929.1,1927.7,1.55008198]
[1771510763095,1.46935285,1929.0,1927.9,1.55008198]
[1771510763269,1.46935285,1928.8,1927.9,1.55008198]
[1771510763598,1.29620988,1928.7,1928.0,2.84676247]